[Event "Late-Titled-Tuesday-Blitz-September-12-2023"]
[Site "Chess.com"]
[Date "2023.09.12"]
[Round "2"]
[White "HanSchut"]
[Black "AndreiITrifan"]
[Result "1/2-1/2"]
[WhiteElo "2287"]
[BlackElo "2647"]
[TimeControl "180+1"]
[EndTime "14:18:31 PDT"]
[Termination "Game drawn by repetition"]

1. e4 {[%clk 0:03:00.9]} 1... d6 {[%clk 0:02:57.9]} 2. d4 {[%clk 0:03:00.7]}
2... Nf6 {[%clk 0:02:57.7]} 3. Nc3 {[%clk 0:03:01.2]} 3... g6 {[%clk 0:02:58.1]}
4. f4 {[%clk 0:03:01.8]} 4... Bg7 {[%clk 0:02:56.9]} 5. Nf3 {[%clk 0:03:02.5]}
5... c6 {[%clk 0:02:54.9]} 6. Bd3 {[%clk 0:03:01.1]} 6... b5 {[%clk 0:02:50.9]}
7. e5 {[%clk 0:03:00.2]} 7... dxe5 {[%clk 0:02:46.9]} 8. dxe5 {[%clk 0:03:00]}
8... Nd5 {[%clk 0:02:44.3]} 9. Nxd5 {[%clk 0:02:58.8]} 9... Qxd5 {[%clk
0:02:45.2]} 10. Qe2 {[%clk 0:02:56.2]} 10... Bf5 {[%clk 0:02:37]} 11. Bxf5
{[%clk 0:02:45.1]} 11... gxf5 {[%clk 0:02:37.9]} 12. O-O {[%clk 0:02:40.9]}
12... c5 {[%clk 0:02:24.4]} 13. Qxb5+ {[%clk 0:02:30.9]} 13... Nd7 {[%clk
0:02:19]} 14. Be3 {[%clk 0:02:21]} 14... Rb8 {[%clk 0:02:18.9]} 15. Rad1 {[%clk
0:02:11.4]} 15... Rxb5 {[%clk 0:02:16.4]} 16. Rxd5 {[%clk 0:02:10.3]} 16... e6
{[%clk 0:02:15.8]} 17. Rd2 {[%clk 0:01:56]} 17... Rxb2 {[%clk 0:02:12]} 18. Rfd1
{[%clk 0:01:55.9]} 18... Rb7 {[%clk 0:02:12.1]} 19. Ne1 {[%clk 0:01:23.9]} 19...
Bf8 {[%clk 0:02:09.5]} 20. c4 {[%clk 0:01:10.2]} 20... Be7 {[%clk 0:02:05.4]}
21. Nd3 {[%clk 0:01:07.2]} 21... Rc7 {[%clk 0:02:04.1]} 22. Nc1 {[%clk
0:00:55.3]} 22... Nb6 {[%clk 0:02:02.8]} 23. Rc2 {[%clk 0:00:48.1]} 23... O-O
{[%clk 0:02:01.2]} 24. Nb3 {[%clk 0:00:47.5]} 24... Rfc8 {[%clk 0:01:56.8]} 25.
g3 {[%clk 0:00:46]} 25... Rd7 {[%clk 0:01:51.3]} 26. Rxd7 {[%clk 0:00:43.2]}
26... Nxd7 {[%clk 0:01:52.2]} 27. Kf2 {[%clk 0:00:34.3]} 27... Nb6 {[%clk
0:01:49.6]} 28. Ke2 {[%clk 0:00:32]} 28... Kf8 {[%clk 0:01:44.8]} 29. Kd3 {[%clk
0:00:27.5]} 29... Ke8 {[%clk 0:01:44.4]} 30. Kc3 {[%clk 0:00:25.4]} 30... Na4+
{[%clk 0:01:37.9]} 31. Kd2 {[%clk 0:00:25.5]} 31... Nb6 {[%clk 0:01:37.7]} 32.
Kc3 {[%clk 0:00:25.6]} 32... Na4+ {[%clk 0:01:35.6]} 33. Kd2 {[%clk 0:00:25.8]}
33... Rd8+ {[%clk 0:01:36.1]} 34. Ke2 {[%clk 0:00:25.7]} 34... Rc8 {[%clk
0:01:33]} 35. Na5 {[%clk 0:00:20]} 35... Kd7 {[%clk 0:01:30.2]} 36. Kd3 {[%clk
0:00:15.4]} 36... Kc7 {[%clk 0:01:27.5]} 37. Rd2 {[%clk 0:00:12.2]} 37... Kb6
{[%clk 0:01:22.9]} 38. Nb3 {[%clk 0:00:10.6]} 38... Kc6 {[%clk 0:01:22.3]} 39.
Rc2 {[%clk 0:00:07.5]} 39... Rd8+ {[%clk 0:01:20.6]} 40. Ke2 {[%clk 0:00:08]}
40... h5 {[%clk 0:01:19.5]} 41. Bf2 {[%clk 0:00:08.6]} 41... Nb6 {[%clk
0:01:15.1]} 42. Na5+ {[%clk 0:00:08.4]} 42... Kc7 {[%clk 0:01:15.4]} 43. Nb3
{[%clk 0:00:09.3]} 43... Kc6 {[%clk 0:01:15.8]} 44. Be3 {[%clk 0:00:09.7]} 44...
h4 {[%clk 0:01:14.1]} 45. Na5+ {[%clk 0:00:08.7]} 45... Kc7 {[%clk 0:01:11.9]}
46. Nb3 {[%clk 0:00:08.8]} 46... hxg3 {[%clk 0:01:11]} 47. hxg3 {[%clk
0:00:09.7]} 47... Na4 {[%clk 0:01:08.5]} 48. Bf2 {[%clk 0:00:09.8]} 48... Rb8
{[%clk 0:01:04.5]} 49. Be3 {[%clk 0:00:09.9]} 49... Rb4 {[%clk 0:01:02.3]} 50.
Bf2 {[%clk 0:00:09.2]} 50... Kc6 {[%clk 0:00:55.7]} 51. Na5+ {[%clk 0:00:09.5]}
51... Kc7 {[%clk 0:00:54.5]} 52. Nb3 {[%clk 0:00:10.4]} 52... Rb7 {[%clk
0:00:53.6]} 53. Na5 {[%clk 0:00:08.6]} 53... Rb2 {[%clk 0:00:49.9]} 54. Rxb2
{[%clk 0:00:09]} 54... Nxb2 {[%clk 0:00:50.8]} 55. Kd2 {[%clk 0:00:07.6]} 55...
Kb6 {[%clk 0:00:48.5]} 56. Nb3 {[%clk 0:00:01.7]} 56... Nxc4+ {[%clk 0:00:47]}
57. Kc3 {[%clk 0:00:02.3]} 57... Na5 {[%clk 0:00:45.1]} 58. Nxa5 {[%clk
0:00:02.7]} 58... Kxa5 {[%clk 0:00:46]} 59. Kc4 {[%clk 0:00:03]} 59... Kb6
{[%clk 0:00:45.6]} 60. a4 {[%clk 0:00:02.8]} 60... a6 {[%clk 0:00:43.5]} 61. Be3
{[%clk 0:00:03.3]} 61... Kc6 {[%clk 0:00:43.7]} 62. Bf2 {[%clk 0:00:03.4]} 62...
Kb6 {[%clk 0:00:35.2]} 63. Be1 {[%clk 0:00:02.8]} 63... Bd8 {[%clk 0:00:31.9]}
64. Bd2 {[%clk 0:00:02.9]} 64... Kc6 {[%clk 0:00:31.9]} 65. Be3 {[%clk
0:00:02.1]} 65... Bb6 {[%clk 0:00:29.7]} 66. Bf2 {[%clk 0:00:02.3]} 66... Ba7
{[%clk 0:00:27]} 67. Be3 {[%clk 0:00:03]} 67... Bb6 {[%clk 0:00:26.9]} 68. Bf2
{[%clk 0:00:03.3]} 68... Bd8 {[%clk 0:00:23.8]} 69. Be3 {[%clk 0:00:03.9]} 69...
Be7 {[%clk 0:00:22.6]} 70. Bf2 {[%clk 0:00:03.8]} 70... Kb6 {[%clk 0:00:21.7]}
1/2-1/2

[Event "Late-Titled-Tuesday-Blitz-September-12-2023"]
[Site "Chess.com"]
[Date "2023.09.12"]
[Round "2"]
[White "ArturoCaceres"]
[Black "PepeCuenca"]
[Result "1-0"]
[WhiteElo "2451"]
[BlackElo "2759"]
[TimeControl "180+1"]
[EndTime "14:18:49 PDT"]
[Termination "ArturoCaceres won on time"]

1. e4 {[%clk 0:03:00.9]} 1... d6 {[%clk 0:03:00.2]} 2. Nf3 {[%clk 0:02:58.9]}
2... Nf6 {[%clk 0:03:00.5]} 3. Nc3 {[%clk 0:02:58.5]} 3... e5 {[%clk 0:03:01.1]}
4. d4 {[%clk 0:02:58.7]} 4... Nbd7 {[%clk 0:03:01.5]} 5. Bc4 {[%clk 0:02:29.5]}
5... Be7 {[%clk 0:03:01.3]} 6. O-O {[%clk 0:02:29.4]} 6... O-O {[%clk
0:03:01.3]} 7. a4 {[%clk 0:02:26.2]} 7... c6 {[%clk 0:03:01.3]} 8. h3 {[%clk
0:02:23.8]} 8... b6 {[%clk 0:03:00.3]} 9. Re1 {[%clk 0:02:23.6]} 9... a6 {[%clk
0:03:00.3]} 10. Bb3 {[%clk 0:02:20.3]} 10... Rb8 {[%clk 0:02:59.6]} 11. d5
{[%clk 0:02:14.8]} 11... c5 {[%clk 0:02:55.4]} 12. Bc4 {[%clk 0:02:14.8]} 12...
Ne8 {[%clk 0:02:54.4]} 13. Bf1 {[%clk 0:02:13.5]} 13... Nc7 {[%clk 0:02:51.6]}
14. Ne2 {[%clk 0:02:01.8]} 14... g6 {[%clk 0:02:48.7]} 15. Bh6 {[%clk
0:01:59.6]} 15... Re8 {[%clk 0:02:48.6]} 16. Ng3 {[%clk 0:01:59.1]} 16... Bf8
{[%clk 0:02:39]} 17. Qd2 {[%clk 0:01:57.6]} 17... Bg7 {[%clk 0:02:03.5]} 18. h4
{[%clk 0:01:54.8]} 18... Bxh6 {[%clk 0:01:52.8]} 19. Qxh6 {[%clk 0:01:53.9]}
19... Qf6 {[%clk 0:01:53.2]} 20. h5 {[%clk 0:01:45]} 20... Qg7 {[%clk
0:01:49.7]} 21. Qxg7+ {[%clk 0:01:21.9]} 21... Kxg7 {[%clk 0:01:49.6]} 22. Nd2
{[%clk 0:01:14.2]} 22... Nf6 {[%clk 0:01:32.2]} 23. hxg6 {[%clk 0:01:02.1]}
23... hxg6 {[%clk 0:01:22.6]} 24. Reb1 {[%clk 0:00:48.5]} 24... b5 {[%clk
0:00:30.2]} 25. axb5 {[%clk 0:00:41.1]} 25... axb5 {[%clk 0:00:24.3]} 26. Ra7
{[%clk 0:00:31.3]} 26... Re7 {[%clk 0:00:24.1]} 27. b4 {[%clk 0:00:23.7]} 27...
c4 {[%clk 0:00:20.3]} 28. Rba1 {[%clk 0:00:20.2]} 28... Kf8 {[%clk 0:00:20.1]}
29. c3 {[%clk 0:00:15.5]} 29... Nce8 {[%clk 0:00:14.8]} 30. R7a5 {[%clk
0:00:14.9]} 30... Reb7 {[%clk 0:00:11.1]} 31. Be2 {[%clk 0:00:15]} 31... Ke7
{[%clk 0:00:11.2]} 32. Ngf1 {[%clk 0:00:15.1]} 32... Bd7 {[%clk 0:00:10.7]} 33.
Ne3 {[%clk 0:00:14.9]} 33... Nc7 {[%clk 0:00:10.9]} 34. f3 {[%clk 0:00:14.7]}
34... Rh8 {[%clk 0:00:10.8]} 35. Kf2 {[%clk 0:00:07.8]} 35... Nh5 {[%clk
0:00:11.1]} 36. Nef1 {[%clk 0:00:06]} 36... Nf4 {[%clk 0:00:10.8]} 37. g3 {[%clk
0:00:05]} 37... Rh2+ {[%clk 0:00:09.8]} 38. Nxh2 {[%clk 0:00:04.4]} 38... Nh3+
{[%clk 0:00:06.3]} 39. Kg2 {[%clk 0:00:04.9]} 39... Ng5 {[%clk 0:00:07.2]} 40.
Nhf1 {[%clk 0:00:05]} 40... Rb8 {[%clk 0:00:07.2]} 41. Ra7 {[%clk 0:00:04.9]}
41... Ne8 {[%clk 0:00:06.8]} 42. g4 {[%clk 0:00:05.6]} 42... Nh7 {[%clk
0:00:06.6]} 43. Ng3 {[%clk 0:00:05.7]} 43... Kd8 {[%clk 0:00:06.7]} 44. R7a5
{[%clk 0:00:04.1]} 44... Ng5 {[%clk 0:00:06.2]} 45. Ndf1 {[%clk 0:00:04.6]}
45... Ke7 {[%clk 0:00:06.2]} 46. Ne3 {[%clk 0:00:04.8]} 46... Nc7 {[%clk
0:00:06.2]} 47. Rh1 {[%clk 0:00:05.1]} 47... Kf6 {[%clk 0:00:05.3]} 48. Kf2
{[%clk 0:00:05.7]} 48... Kg7 {[%clk 0:00:05.3]} 49. Bf1 {[%clk 0:00:06]} 49...
Ne8 {[%clk 0:00:04.8]} 50. Ne2 {[%clk 0:00:06.4]} 50... Bc8 {[%clk 0:00:04.7]}
51. Bg2 {[%clk 0:00:06.7]} 51... Kf6 {[%clk 0:00:05.1]} 52. f4 {[%clk
0:00:06.5]} 52... exf4 {[%clk 0:00:05.1]} 53. Nxf4 {[%clk 0:00:07.4]} 53... Ke5
{[%clk 0:00:05.3]} 54. Ne2 {[%clk 0:00:07.2]} 54... Nf6 {[%clk 0:00:05.1]} 55.
Ra7 {[%clk 0:00:04.9]} 55... Bxg4 {[%clk 0:00:04.3]} 56. Re7+ {[%clk 0:00:03.2]}
56... Be6 {[%clk 0:00:02.4]} 57. dxe6 {[%clk 0:00:04.1]} 57... fxe6 {[%clk
0:00:02.8]} 58. Nd4 {[%clk 0:00:04.5]} 58... Rf8 {[%clk 0:00:02.9]} 59. Ke2
{[%clk 0:00:04.6]} 59... d5 {[%clk 0:00:03.1]} 60. exd5 {[%clk 0:00:04.4]} 60...
Nxd5 {[%clk 0:00:03.8]} 61. Nxd5 {[%clk 0:00:04.8]} 61... Kd6 {[%clk 0:00:03.5]}
62. Rg7 {[%clk 0:00:04.5]} 62... exd5 {[%clk 0:00:03.5]} 63. Rxg6+ {[%clk
0:00:05.1]} 63... Ke5 {[%clk 0:00:03.9]} 64. Rxg5+ {[%clk 0:00:05.6]} 64... Kf4
{[%clk 0:00:04.6]} 65. Rf5+ {[%clk 0:00:05.2]} 65... Kg4 {[%clk 0:00:04.3]} 66.
Rxf8 {[%clk 0:00:04.9]} 1-0

[Event "Late-Titled-Tuesday-Blitz-September-12-2023"]
[Site "Chess.com"]
[Date "2023.09.12"]
[Round "2"]
[White "carloseduar100"]
[Black "robertoalejandro10"]
[Result "0-1"]
[WhiteElo "2279"]
[BlackElo "2510"]
[TimeControl "180+1"]
[EndTime "14:18:51 PDT"]
[Termination "robertoalejandro10 won by checkmate"]

1. e4 {[%clk 0:02:00.9]} 1... c5 {[%clk 0:02:59]} 2. Nf3 {[%clk 0:02:00.4]} 2...
g6 {[%clk 0:02:58.6]} 3. d4 {[%clk 0:02:00.8]} 3... cxd4 {[%clk 0:02:59.5]} 4.
c3 {[%clk 0:02:00.3]} 4... d3 {[%clk 0:02:59.3]} 5. Bxd3 {[%clk 0:02:00.5]} 5...
Bg7 {[%clk 0:02:59.4]} 6. O-O {[%clk 0:02:01.4]} 6... Nc6 {[%clk 0:02:59.8]} 7.
Re1 {[%clk 0:02:01.5]} 7... d6 {[%clk 0:02:58.3]} 8. Bg5 {[%clk 0:02:00.7]} 8...
Bg4 {[%clk 0:02:56]} 9. Nbd2 {[%clk 0:02:00.4]} 9... Nf6 {[%clk 0:02:45.9]} 10.
h3 {[%clk 0:01:55.3]} 10... Bxf3 {[%clk 0:02:42.2]} 11. Nxf3 {[%clk 0:01:27.6]}
11... O-O {[%clk 0:02:41.7]} 12. e5 {[%clk 0:01:04.9]} 12... dxe5 {[%clk
0:02:04.1]} 13. Nxe5 {[%clk 0:00:59.6]} 13... Nxe5 {[%clk 0:01:59.1]} 14. Rxe5
{[%clk 0:00:55]} 14... Qc7 {[%clk 0:01:56.2]} 15. Qe2 {[%clk 0:00:52.8]} 15...
e6 {[%clk 0:01:49.4]} 16. Rd1 {[%clk 0:00:48]} 16... Nd5 {[%clk 0:01:38.8]} 17.
Re4 {[%clk 0:00:47.3]} 17... Qa5 {[%clk 0:01:20.6]} 18. Qd2 {[%clk 0:00:26.2]}
18... b5 {[%clk 0:00:45]} 19. Bb1 {[%clk 0:00:26]} 19... a6 {[%clk 0:00:43.7]}
20. Bh6 {[%clk 0:00:25.6]} 20... Rfd8 {[%clk 0:00:41.8]} 21. Bxg7 {[%clk
0:00:25.7]} 21... Kxg7 {[%clk 0:00:42.7]} 22. Rd4 {[%clk 0:00:25.3]} 22... Qc7
{[%clk 0:00:37.9]} 23. a3 {[%clk 0:00:25.3]} 23... Rd7 {[%clk 0:00:33.2]} 24.
Qg5 {[%clk 0:00:25.1]} 24... Rad8 {[%clk 0:00:31.6]} 25. Ba2 {[%clk 0:00:25.6]}
25... Nf6 {[%clk 0:00:22.6]} 26. Qe3 {[%clk 0:00:23.3]} 26... Rxd4 {[%clk
0:00:21.5]} 27. Rxd4 {[%clk 0:00:22.8]} 27... Rxd4 {[%clk 0:00:20.8]} 28. Qxd4
{[%clk 0:00:23.4]} 28... e5 {[%clk 0:00:19.2]} 29. Qd3 {[%clk 0:00:20.2]} 29...
Qe7 {[%clk 0:00:18.4]} 30. g4 {[%clk 0:00:19.2]} 30... Ne8 {[%clk 0:00:18.3]}
31. Qd5 {[%clk 0:00:19]} 31... Nf6 {[%clk 0:00:15.1]} 32. Qa8 {[%clk 0:00:18]}
32... h5 {[%clk 0:00:15.1]} 33. g5 {[%clk 0:00:15.6]} 33... Nd7 {[%clk 0:00:14]}
34. h4 {[%clk 0:00:15.7]} 34... Nc5 {[%clk 0:00:14.3]} 35. Qd5 {[%clk
0:00:14.6]} 35... Na4 {[%clk 0:00:10.8]} 36. Qd2 {[%clk 0:00:12.9]} 36... Nc5
{[%clk 0:00:10]} 37. Bb1 {[%clk 0:00:11.8]} 37... e4 {[%clk 0:00:10.2]} 38. Qd4+
{[%clk 0:00:11.2]} 38... Kg8 {[%clk 0:00:10.9]} 39. b4 {[%clk 0:00:10.9]} 39...
Ne6 {[%clk 0:00:09]} 40. Qxe4 {[%clk 0:00:10.8]} 40... Qc7 {[%clk 0:00:09.7]}
41. Bd3 {[%clk 0:00:09.7]} 41... Qxc3 {[%clk 0:00:09]} 42. Qd5 {[%clk
0:00:07.6]} 42... Qxa3 {[%clk 0:00:07.9]} 43. Bxg6 {[%clk 0:00:08.2]} 43... Qc1+
{[%clk 0:00:07.7]} 44. Kg2 {[%clk 0:00:07]} 44... Qf4 {[%clk 0:00:04.3]} 45.
Bxh5 {[%clk 0:00:05.3]} 45... Qxh4 {[%clk 0:00:03.8]} 46. Qa8+ {[%clk
0:00:03.1]} 46... Kg7 {[%clk 0:00:03.4]} 47. Bf3 {[%clk 0:00:04]} 47... Nf4+
{[%clk 0:00:03.7]} 48. Kf1 {[%clk 0:00:04.7]} 48... Qxg5 {[%clk 0:00:03.5]} 49.
Qe4 {[%clk 0:00:05]} 49... Qf6 {[%clk 0:00:03.6]} 50. Be2 {[%clk 0:00:04.3]}
50... Ng6 {[%clk 0:00:04.5]} 51. Qd3 {[%clk 0:00:04.1]} 51... Qa1+ {[%clk
0:00:04.4]} 52. Kg2 {[%clk 0:00:04.6]} 52... Nf4+ {[%clk 0:00:04.1]} 53. Kf3
{[%clk 0:00:05.3]} 53... Nxd3 {[%clk 0:00:05]} 54. Bxd3 {[%clk 0:00:06]} 54...
Qc3 {[%clk 0:00:05.2]} 55. Ke4 {[%clk 0:00:06.7]} 55... Qxb4+ {[%clk 0:00:05.7]}
56. Kd5 {[%clk 0:00:06.7]} 56... Qc3 {[%clk 0:00:05.7]} 57. Be4 {[%clk
0:00:07.5]} 57... b4 {[%clk 0:00:06]} 58. f4 {[%clk 0:00:08.3]} 58... b3 {[%clk
0:00:06.6]} 59. f5 {[%clk 0:00:08.4]} 59... b2 {[%clk 0:00:07.3]} 60. f6+ {[%clk
0:00:09.1]} 60... Qxf6 {[%clk 0:00:07.7]} 61. Bc2 {[%clk 0:00:09.3]} 61... Qg5+
{[%clk 0:00:06.6]} 62. Kc4 {[%clk 0:00:09.4]} 62... Qc1 {[%clk 0:00:07.5]} 63.
Kb3 {[%clk 0:00:09.5]} 63... a5 {[%clk 0:00:08]} 64. Bb1 {[%clk 0:00:10.1]}
64... Qxb1 {[%clk 0:00:07.8]} 65. Kc3 {[%clk 0:00:10.4]} 65... Qc1+ {[%clk
0:00:08.2]} 66. Kd4 {[%clk 0:00:09.1]} 66... b1=Q {[%clk 0:00:08]} 67. Kd5
{[%clk 0:00:09.9]} 67... Qb5+ {[%clk 0:00:08.1]} 68. Kd6 {[%clk 0:00:10.5]}
68... Qcc6+ {[%clk 0:00:08.2]} 69. Ke7 {[%clk 0:00:09.9]} 69... Qbb7+ {[%clk
0:00:08.6]} 70. Kd8 {[%clk 0:00:10.7]} 70... Qcc8# {[%clk 0:00:09]} 0-1

[Event "Late-Titled-Tuesday-Blitz-September-12-2023"]
[Site "Chess.com"]
[Date "2023.09.12"]
[Round "2"]
[White "FeketeBarika"]
[Black "Mikasinski"]
[Result "0-1"]
[WhiteElo "2383"]
[BlackElo "2654"]
[TimeControl "180+1"]
[EndTime "14:18:52 PDT"]
[Termination "Mikasinski won by resignation"]

1. Nf3 {[%clk 0:02:42.6]} 1... Nf6 {[%clk 0:02:57.4]} 2. g3 {[%clk 0:02:43.5]}
2... g6 {[%clk 0:02:57.3]} 3. c4 {[%clk 0:02:43.5]} 3... Bg7 {[%clk 0:02:57.8]}
4. Bg2 {[%clk 0:02:44.1]} 4... O-O {[%clk 0:02:58.5]} 5. O-O {[%clk 0:02:44.8]}
5... d6 {[%clk 0:02:59.4]} 6. Nc3 {[%clk 0:02:45]} 6... e5 {[%clk 0:02:59.7]} 7.
d3 {[%clk 0:02:45.6]} 7... Re8 {[%clk 0:03:00.4]} 8. Rb1 {[%clk 0:02:45.8]} 8...
a5 {[%clk 0:03:00.4]} 9. a3 {[%clk 0:02:45.6]} 9... Nc6 {[%clk 0:03:01.2]} 10.
b4 {[%clk 0:02:45.8]} 10... axb4 {[%clk 0:03:02]} 11. axb4 {[%clk 0:02:46.6]}
11... Bg4 {[%clk 0:02:59.9]} 12. h3 {[%clk 0:02:45.3]} 12... Bc8 {[%clk
0:02:55.3]} 13. Nd2 {[%clk 0:02:44.2]} 13... Nd4 {[%clk 0:02:55.3]} 14. e3
{[%clk 0:02:43.4]} 14... Ne6 {[%clk 0:02:55.4]} 15. Kh2 {[%clk 0:02:33.1]} 15...
h5 {[%clk 0:02:54.8]} 16. b5 {[%clk 0:02:29.7]} 16... Qd7 {[%clk 0:02:53.9]} 17.
Nb3 {[%clk 0:02:23.8]} 17... Ng5 {[%clk 0:02:52.6]} 18. h4 {[%clk 0:02:22.1]}
18... Ng4+ {[%clk 0:02:52.4]} 19. Kg1 {[%clk 0:02:20.2]} 19... Nh7 {[%clk
0:02:50.5]} 20. Nd5 {[%clk 0:02:13.7]} 20... Qd8 {[%clk 0:02:50.4]} 21. b6
{[%clk 0:02:08.8]} 21... cxb6 {[%clk 0:02:49]} 22. Nd2 {[%clk 0:02:08.2]} 22...
Bf5 {[%clk 0:02:48]} 23. Nxb6 {[%clk 0:02:07]} 23... Bxd3 {[%clk 0:02:46.7]} 24.
Nxa8 {[%clk 0:02:05.3]} 24... Bxb1 {[%clk 0:02:44.8]} 25. Nxb1 {[%clk
0:02:05.6]} 25... Qxa8 {[%clk 0:02:43.6]} 26. Qxd6 {[%clk 0:02:05.3]} 26... e4
{[%clk 0:02:39]} 27. Nd2 {[%clk 0:01:58.2]} 27... Nhf6 {[%clk 0:02:33.6]} 28.
Bb2 {[%clk 0:01:52.4]} 28... Rd8 {[%clk 0:02:33.4]} 29. Qb4 {[%clk 0:01:51.4]}
29... Qa6 {[%clk 0:02:25.8]} 30. Nxe4 {[%clk 0:01:42.4]} 30... Nxe4 {[%clk
0:02:25.1]} 31. Bxe4 {[%clk 0:01:43]} 31... Bxb2 {[%clk 0:02:21.5]} 32. Qxb2
{[%clk 0:01:42.6]} 32... Qxc4 {[%clk 0:02:20.3]} 33. Qxb7 {[%clk 0:01:40.6]}
33... Qe2 {[%clk 0:02:15.6]} 34. Bf3 {[%clk 0:01:38.9]} 34... Qc4 {[%clk
0:02:10]} 35. Qe4 {[%clk 0:01:36.1]} 35... Qxe4 {[%clk 0:01:56.1]} 36. Bxe4
{[%clk 0:01:37]} 36... Rd2 {[%clk 0:01:56.4]} 37. Bf3 {[%clk 0:01:32.8]} 37...
Ne5 {[%clk 0:01:56.3]} 38. Bg2 {[%clk 0:01:33.5]} 38... Kg7 {[%clk 0:01:54.2]}
39. e4 {[%clk 0:01:21.1]} 39... Kf6 {[%clk 0:01:47.3]} 40. f4 {[%clk 0:01:09.9]}
40... Ng4 {[%clk 0:01:47.3]} 41. Bf3 {[%clk 0:01:05.7]} 41... Ne3 {[%clk
0:01:39]} 42. Re1 {[%clk 0:01:04.7]} 42... Nc2 {[%clk 0:01:38.1]} 43. Re2 {[%clk
0:01:03.5]} 43... Nd4 {[%clk 0:01:37.2]} 44. Rf2 {[%clk 0:00:56.1]} 44... Ke7
{[%clk 0:01:33.4]} 45. Kg2 {[%clk 0:00:54.7]} 45... Rd3 {[%clk 0:01:31.8]} 46.
e5 {[%clk 0:00:48.4]} 46... Ke6 {[%clk 0:01:30.4]} 47. Be4 {[%clk 0:00:44.1]}
47... Re3 {[%clk 0:01:29.5]} 48. Bb1 {[%clk 0:00:44.6]} 48... Re1 {[%clk
0:01:26.9]} 49. Bd3 {[%clk 0:00:43.4]} 49... Rd1 {[%clk 0:01:24.9]} 50. Bc4+
{[%clk 0:00:43.6]} 50... Ke7 {[%clk 0:01:24.6]} 51. Rb2 {[%clk 0:00:32.5]} 51...
Nf5 {[%clk 0:01:24.9]} 52. Rb7+ {[%clk 0:00:30.6]} 52... Kf8 {[%clk 0:01:23.4]}
53. Rxf7+ {[%clk 0:00:30.3]} 53... Ke8 {[%clk 0:01:23.4]} 54. Be6 {[%clk
0:00:24.5]} 54... Rd2+ {[%clk 0:01:22.7]} 55. Kh3 {[%clk 0:00:21.5]} 55... Nd4
{[%clk 0:01:11.7]} 56. Rf6 {[%clk 0:00:21.2]} 56... Ne2 {[%clk 0:00:59.9]} 57.
g4 {[%clk 0:00:19.5]} 57... Ke7 {[%clk 0:00:54]} 58. gxh5 {[%clk 0:00:18.8]}
58... gxh5 {[%clk 0:00:54.4]} 59. Bc4 {[%clk 0:00:12.9]} 59... Ng1+ {[%clk
0:00:48.4]} 60. Kg3 {[%clk 0:00:12]} 60... Rc2 {[%clk 0:00:47.8]} 61. Rc6 {[%clk
0:00:11.1]} 61... Ne2+ {[%clk 0:00:46.6]} 62. Kh3 {[%clk 0:00:09.9]} 62... Nxf4+
{[%clk 0:00:46.4]} 63. Kg3 {[%clk 0:00:09.8]} 63... Ne2+ {[%clk 0:00:45.5]} 64.
Kh3 {[%clk 0:00:09.1]} 64... Nd4 {[%clk 0:00:37.1]} 65. Rc7+ {[%clk 0:00:06.1]}
65... Kd8 {[%clk 0:00:37.1]} 66. Rc5 {[%clk 0:00:05.8]} 66... Nf5 {[%clk
0:00:28.2]} 67. e6 {[%clk 0:00:04.9]} 67... Nd6 {[%clk 0:00:24.3]} 68. Rd5
{[%clk 0:00:03.9]} 68... Ke7 {[%clk 0:00:22.6]} 69. Bd3 {[%clk 0:00:02.7]} 69...
Rc3 {[%clk 0:00:16]} 70. Kg2 {[%clk 0:00:02.9]} 70... Kxe6 {[%clk 0:00:15.5]}
71. Rd4 {[%clk 0:00:03.4]} 71... Ke5 {[%clk 0:00:15.1]} 72. Rxd6 {[%clk
0:00:02.1]} 72... Kxd6 {[%clk 0:00:14.9]} 73. Bg6 {[%clk 0:00:02.9]} 73... Rc5
{[%clk 0:00:13.9]} 74. Bxh5 {[%clk 0:00:03.2]} 74... Rxh5 {[%clk 0:00:13.9]} 0-1